bitfinex-derivatives/quotes_SOLF0:USTF0_20250509
["timestamp","ask_amount","ask_price","bid_price","bid_amount"]
[1746807058306,3.7678,169.07,168.93,45.6149]
[1746807058611,5.9171,169.0,168.96,5.918]
[1746807058810,38.9,169.04,168.93,45.6149]
[1746807059216,5.9173,168.99,168.96,5.9181]
[1746807059509,38.9,169.04,168.96,5.9181]
[1746807059713,5.917,169.0,168.97,5.9178]
[1746807060011,38.9,169.04,168.93,45.6149]
[1746807060212,38.9,169.04,168.96,5.918]
[1746807060411,38.9,169.04,168.93,45.6149]
[1746807060913,38.9,169.04,168.93,5.7949]
[1746807061313,38.9,169.04,168.95,5.9185]
[1746807061614,38.9,169.04,168.93,5.7949]
[1746807062514,3.7678,169.07,168.93,5.7949]
[1746807063008,39.82,169.08,168.96,15.6361147]
[1746807063216,39.82,169.13,169.0,15.6361147]
[1746807063511,45.7324,169.13,169.01,1.9346]
[1746807063712,39.82,169.13,169.01,1.9346]
[1746807063913,39.82,169.13,169.11,5.9129]
[1746807064113,83.09074824,169.17,169.06,38.94]
[1746807064514,5.9124,169.13,169.09,5.9134]
[1746807064706,83.09074824,169.17,169.03,38.94]
[1746807065412,82.5378,169.19,169.03,38.94]
[1746807065606,15.6361147,169.16,169.02,3.7701]
[1746807065812,15.6361147,169.16,168.93,11.8381]
[1746807065813,25.38919283,169.14,168.98,78.7]
[1746807066009,78.74,169.13,168.98,78.7]
[1746807066212,78.74,169.13,169.02,5.9158]
[1746807066416,1.8487,169.12,168.98,78.7]
[1746807067915,3.7239,169.11,168.98,78.7]
[1746807068317,5.9144,169.07,168.98,78.7]
[1746807068513,3.7239,169.11,168.98,78.7]
[1746807069020,38.96,169.1,168.98,78.7]
[1746807069319,5.9156,169.04,169.01,5.9163]
[1746807069518,38.96,169.1,168.98,39.82]
[1746807069915,38.96,169.1,169.0,5.9168]
[1746807070114,38.96,169.1,168.98,39.82]
[1746807070313,38.96,169.1,168.94,3.8827]
[1746807070514,5.9167,169.01,168.97,5.9176]
[1746807070718,5.9167,169.01,168.94,1.8744]
[1746807070918,5.9167,169.01,168.94,3.8603]
[1746807071119,78.62,169.06,168.94,3.8603]
[1746807071522,5.9157,169.04,168.95,6.34054543]
[1746807071723,78.62,169.06,168.96,6.34054543]
[1746807071926,78.62,169.06,168.97,6.34054543]
[1746807072222,5.9145,169.07,168.98,6.34054543]
[1746807072419,82.3039,169.11,168.99,6.34054543]
[1746807072621,82.3039,169.11,169.01,5.9164]
[1746807072812,82.3039,169.11,169.02,6.34176597]
[1746807073017,82.3039,169.11,169.03,5.9157]
[1746807073228,82.3039,169.11,168.95,1.9859]
[1746807073421,82.3039,169.11,168.96,6.34477345]
[1746807073724,39.82,169.11,168.97,31.73396628]
[1746807073923,39.82,169.11,168.98,6.34477345]
[1746807074227,549.94,169.14,169.01,25.38919283]
[1746807074427,549.94,169.14,169.02,10.28557345]
[1746807074623,5.9125,169.13,169.09,5.9134]
[1746807074826,38.66,169.14,169.05,38.66]
[1746807075326,38.66,169.14,169.07,5.9144]
[1746807075628,38.66,169.14,169.05,38.66]
[1746807076528,5.9136,169.1,169.06,5.9145]
[1746807076729,5.9136,169.1,169.05,38.66]
[1746807077130,5.9137,169.09,169.05,38.66]
[1746807077322,38.66,169.14,169.05,38.66]
[1746807078028,38.66,169.14,169.03,1.8563]
[1746807078229,38.66,169.14,168.99,38.62]
[1746807079228,25.38919283,169.08,168.91,512.2]
[1746807079427,82.8108,169.07,168.93,38.62]
[1746807079822,5.9162,169.02,168.93,38.62]
[1746807080219,82.8108,169.07,168.96,5.9179]
[1746807080425,82.8108,169.07,168.93,38.62]
[1746807081031,82.8108,169.07,168.97,5.9178]
[1746807081224,82.8108,169.07,168.93,38.62]
[1746807081629,5.9165,169.01,168.97,5.9176]
[1746807081831,82.8108,169.07,168.97,5.9176]
[1746807082133,82.8108,169.07,168.98,5.9174]
[1746807082324,82.8108,169.07,168.99,6.34800837]
[1746807082523,82.8108,169.07,168.93,38.62]
[1746807082722,82.8108,169.07,168.98,5.9175]
[1746807082926,82.8108,169.07,168.99,6.34916505]
[1746807083126,82.8108,169.07,168.98,5.9175]
[1746807083330,82.8108,169.07,168.99,6.34658002]
[1746807083532,82.8108,169.07,169.0,6.34658002]
[1746807083832,82.8108,169.07,168.94,38.2]
[1746807084032,82.8108,169.07,168.95,6.34511633]
[1746807084233,82.8108,169.07,168.96,6.34511633]
[1746807084534,82.8108,169.07,168.97,6.34511633]
[1746807084734,82.8108,169.07,168.98,6.34511633]
[1746807084935,82.8108,169.07,168.99,6.3427224]
[1746807085132,38.62,169.1,169.0,6.34190809]
[1746807085429,5.9147,169.07,169.04,5.9152]
[1746807085634,38.62,169.1,168.99,38.62]
[1746807086330,38.62,169.1,169.0,5.6884]
[1746807086836,38.62,169.1,169.0,43.8284]
[1746807087230,5.9146,169.07,169.04,5.9153]
[1746807087430,38.62,169.1,169.0,43.8284]
[1746807087631,38.62,169.1,169.01,6.33854148]
[1746807087828,38.62,169.1,169.02,6.33854148]
[1746807088033,38.26,169.12,169.03,6.33854148]
[1746807088333,38.62,169.14,169.04,6.33854148]
[1746807088535,38.62,169.14,169.05,6.33854148]
[1746807088736,5.9125,169.13,169.09,5.9133]
[1746807088939,44.406,169.18,169.1,6.33140963]
[1746807089134,42.4721,169.18,169.06,38.18]
[1746807089336,5.911,169.17,169.13,5.912]
[1746807089535,5.911,169.17,169.06,38.18]
[1746807089838,38.62,169.18,169.08,5.7224]
[1746807090041,38.62,169.18,169.09,6.32582546]
[1746807090236,38.62,169.18,169.12,5.9124]
[1746807090537,38.62,169.18,169.08,5.7224]
[1746807090739,38.62,169.18,169.14,5.9119]
[1746807091033,5.9109,169.17,169.08,5.7224]
[1746807091237,38.62,169.18,169.12,5.9123]
[1746807091536,5.9121,169.14,169.08,5.7224]
[1746807091731,38.62,169.18,169.13,5.912]
[1746807091936,38.62,169.18,169.08,5.7224]
[1746807092136,38.62,169.18,169.09,6.31890879]
[1746807092341,38.62,169.18,169.12,5.9123]
[1746807092738,5.9115,169.16,169.08,5.7224]
[1746807092940,38.62,169.18,169.09,6.3204129]
[1746807093139,38.62,169.18,169.1,6.3204129]
[1746807093434,38.62,169.18,169.12,5.9125]
[1746807093640,38.62,169.18,169.08,5.7224]
[1746807093833,38.14,169.22,169.09,82.95636782]
[1746807094033,38.14,169.22,169.1,6.31636782]
[1746807094234,44.4032,169.23,169.11,6.31636782]
[1746807094435,44.4032,169.23,169.12,6.31636782]
[1746807094640,5.91,169.2,169.13,6.31636782]
[1746807094834,42.4997,169.23,169.09,76.64]
[1746807094835,42.4997,169.23,169.14,44.23636782]
[1746807095031,42.4997,169.23,169.14,37.92]
[1746807095232,42.4997,169.23,169.15,5.9114]
[1746807095534,42.4997,169.23,169.14,37.92]
[1746807095738,42.4997,169.23,169.16,5.911]
[1746807095941,42.4997,169.23,169.14,37.92]
[1746807096338,5.9107,169.18,169.14,43.8316]
[1746807096541,42.4997,169.23,169.14,37.92]
[1746807096841,5.9096,169.21,169.18,5.9105]
[1746807097042,549.76,169.27,169.15,38.6]
[1746807097245,549.76,169.27,169.16,6.30793254]
[1746807097440,549.76,169.27,169.17,10.21533254]
[1746807097643,549.76,169.27,169.18,6.30793254]
[1746807097939,549.76,169.27,169.17,3.9074]
[1746807098134,549.76,169.27,169.18,6.3035481]
[1746807098334,549.76,169.27,169.17,3.9074]
[1746807098536,549.76,169.27,169.18,6.29820914]
[1746807098737,25.38919283,169.34,169.17,3.9074]
[1746807098945,5.9071,169.28,169.25,5.9081]
[1746807099344,76.24,169.33,169.25,5.9081]
[1746807099642,5.9069,169.29,169.25,5.9081]
[1746807100042,5.9069,169.29,169.26,5.9076]
[1746807100237,38.6,169.33,169.21,38.6]
[1746807100443,38.6,169.33,169.23,37.5]
[1746807100744,5.9066,169.3,169.27,5.9071]
[1746807101044,38.6,169.37,169.23,37.5]
[1746807101242,38.6,169.37,169.24,8.23980614]
[1746807101550,38.6,169.37,169.24,1.9618]
[1746807101845,5.9062,169.31,169.24,1.9618]
[1746807102046,38.6,169.37,169.24,1.9618]
[1746807102343,5.9055,169.33,169.29,5.9067]
[1746807102744,5.9055,169.33,169.25,3.9312]
[1746807102946,5.9059,169.32,169.25,3.9312]
[1746807103149,38.6,169.37,169.25,3.9312]
[1746807103546,38.6,169.37,169.28,5.9069]
[1746807103746,38.6,169.37,169.25,3.9312]
[1746807104047,5.9055,169.33,169.3,5.9061]
[1746807104242,38.6,169.37,169.26,37.42]
[1746807104747,44.504,169.37,169.26,37.42]
[1746807104949,43.262,169.41,169.26,37.42]
[1746807104950,43.282,169.41,169.26,37.42]
[1746807105145,5.9039,169.37,169.26,37.42]
[1746807105343,43.282,169.41,169.26,37.42]
[1746807105644,43.282,169.41,169.34,5.9048]
[1746807105845,43.282,169.41,169.3,37.38]
[1746807106042,138.259842,169.51,169.31,37.42]
[1746807106238,5.9039,169.37,169.33,5.9052]
[1746807106437,5.9039,169.37,169.32,37.32]
[1746807106641,25.38919283,169.44,169.33,5.9051]
[1746807106839,25.38919283,169.44,169.32,37.32]
[1746807107042,74.72,169.43,169.32,37.32]
[1746807107546,74.72,169.43,169.31,37.42]
[1746807107744,74.72,169.43,169.31,43.3257]
[1746807107945,74.72,169.43,169.31,37.42]
[1746807108238,5.9041,169.37,169.31,37.42]
[1746807108650,74.72,169.43,169.31,37.42]
[1746807108839,5.9045,169.36,169.32,5.9056]
[1746807109143,74.72,169.43,169.31,37.42]
[1746807109344,5.9048,169.35,169.32,5.9056]
[1746807110551,5.9043,169.36,169.32,5.9056]
[1746807110746,74.72,169.43,169.31,37.42]
[1746807111144,74.72,169.43,169.28,37.26]
[1746807111354,1.06044436,169.42,169.24,1.9618]
[1746807111549,1.06044436,169.42,169.26,74.38]
[1746807111750,5.9059,169.32,169.28,5.9068]
[1746807111951,37.4,169.36,169.26,74.38]
[1746807112152,37.4,169.36,169.24,1.9618]
[1746807112347,3.9081,169.35,169.22,52.51762068]
[1746807113855,37.4,169.36,169.26,15.57762068]
[1746807114048,37.4,169.39,169.27,79.9892]
[1746807114355,5.9047,169.35,169.27,79.9892]
[1746807114552,37.4,169.39,169.27,79.9892]
[1746807114852,5.9053,169.34,169.27,79.9892]
[1746807115155,37.4,169.39,169.27,79.9892]
[1746807115555,37.4,169.39,169.31,5.906]
[1746807115756,37.4,169.39,169.27,79.9892]
[1746807116054,5.9046,169.35,169.27,79.9892]
[1746807116258,37.4,169.39,169.27,79.9892]
[1746807116458,5.9048,169.35,169.27,79.9892]
[1746807116648,37.4,169.39,169.27,79.9892]
[1746807116853,37.4,169.39,169.24,36.84]
[1746807117148,5.9058,169.32,169.24,36.84]
[1746807117352,5.9058,169.32,169.28,5.9068]
[1746807117553,5.9058,169.32,169.24,36.84]
[1746807117754,5.906,169.31,169.27,5.9071]
[1746807117953,74.16,169.34,169.24,36.84]
[1746807118158,74.16,169.34,169.23,37.4]
[1746807118357,5.9063,169.31,169.23,37.4]
[1746807118757,5.9063,169.31,169.28,5.9069]
[1746807119057,74.16,169.34,169.23,37.4]
[1746807119558,5.9053,169.33,169.3,5.9061]
[1746807119753,37.4,169.34,169.23,37.4]
[1746807120253,1.9107,169.4,169.25,15.57762068]
[1746807120458,37.4,169.41,169.29,15.57762068]
[1746807120656,37.4,169.41,169.3,79.9218]
[1746807121053,37.4,169.41,169.32,5.9054]
[1746807121254,37.4,169.41,169.26,37.4]
[1746807121555,37.4,169.41,169.25,74.08]
[1746807121852,5.9055,169.33,169.29,5.9064]
[1746807122252,37.4,169.36,169.25,74.08]
[1746807122862,5.905,169.34,169.25,74.08]
[1746807123062,37.4,169.36,169.25,74.08]
[1746807123461,37.4,169.36,169.28,5.907]
[1746807123662,37.4,169.36,169.25,74.08]
[1746807123963,5.9055,169.33,169.29,5.9064]
[1746807124265,37.4,169.36,169.25,74.08]
[1746807125063,5.9054,169.33,169.29,5.9065]
[1746807125362,37.4,169.36,169.25,74.08]
[1746807125565,5.9059,169.32,169.28,5.9068]
[1746807125761,37.4,169.36,169.25,37.4]
[1746807125962,5.9062,169.31,169.27,5.9071]
[1746807126163,37.4,169.36,169.25,37.4]
[1746807126361,5.7926,169.35,169.25,37.4]
[1746807126564,36.64,169.34,169.24,36.66]
[1746807126758,36.64,169.34,169.25,5.9081]
[1746807126955,36.64,169.34,169.21,548.28]
[1746807127159,36.64,169.34,169.21,37.4]
[1746807127459,15.57762068,169.33,169.16,37.4]
[1746807127762,5.9099,169.2,169.16,43.3111]
[1746807128061,5.9099,169.2,169.03,17.7465]
[1746807128062,37.4,169.25,169.12,37.4]
[1746807128262,5.9116,169.15,169.11,5.9129]
[1746807128464,5.9116,169.15,169.09,38.4843]
[1746807128465,37.4,169.19,169.08,1.9108]
[1746807128661,37.4,169.18,169.01,74.06]
[1746807128962,5.913,169.11,169.04,5.9153]
[1746807129368,74.06,169.13,169.01,74.06]
[1746807129664,2.0166,169.12,168.98,584.48]
[1746807129868,2.0166,169.12,168.99,6.26639946]
[1746807130068,2.0166,169.12,169.0,21.84402014]
[1746807130262,2.0166,169.12,169.06,5.9144]
[1746807130564,2.0166,169.12,168.98,584.48]
[1746807130765,2.0166,169.12,169.06,5.9147]
[1746807130966,2.0166,169.12,169.0,6.26635812]
[1746807131162,2.0166,169.12,168.98,584.48]
[1746807131364,2.0166,169.12,168.99,6.27094365]
[1746807131558,3.8619,169.12,168.98,584.48]
[1746807131763,5.9134,169.1,168.98,584.48]
[1746807132470,2.0166,169.12,168.99,36.62]
[1746807133068,2.0166,169.12,168.98,547.82]
[1746807133267,3.8998,169.12,168.97,5.683]
[1746807133464,5.9149,169.06,168.99,5.9169]
[1746807133765,74.12,169.06,168.97,3.8023]
[1746807133964,74.12,169.06,169.0,5.9167]
[1746807134163,3.8998,169.12,168.97,29.18945089]
[1746807134363,36.66,169.09,168.97,29.18945089]
[1746807134569,36.66,169.09,169.06,5.9145]
[1746807134763,9.8127,169.12,169.06,5.9145]
[1746807134969,73.26,169.11,169.07,5.9141]
[1746807135267,73.26,169.11,169.0,1.824]
[1746807136566,36.66,169.11,169.0,1.824]
[1746807137768,36.66,169.11,169.05,5.915]
[1746807137968,36.66,169.11,169.0,1.824]
[1746807139164,36.66,169.11,169.0,27.21115089]
[1746807139564,36.66,169.11,169.0,1.824]
[1746807140368,36.66,169.11,169.07,5.9142]
[1746807140665,36.66,169.11,169.0,1.824]
[1746807140866,36.68,169.15,169.03,25.38715089]
[1746807141068,36.68,169.15,169.04,36.36]
[1746807141269,36.68,169.15,169.04,73.04]
[1746807141474,42.5917,169.15,169.04,73.04]
[1746807141868,36.68,169.15,169.04,73.04]
[1746807142069,72.96,169.15,169.04,73.04]
[1746807142265,72.96,169.15,169.04,36.36]
[1746807142470,5.9129,169.12,169.07,5.9144]
[1746807143565,72.96,169.15,169.0,38.504]
[1746807143772,72.96,169.15,169.0,74.864]
[1746807143962,1.06224061,169.14,169.06,5.9147]
[1746807144167,72.96,169.15,169.06,5.9147]
[1746807144366,36.68,169.15,169.0,74.864]
[1746807144572,5.9125,169.13,169.08,5.9137]
[1746807144765,36.34,169.14,169.0,74.864]
[1746807145068,1.9106,169.13,169.0,74.864]
[1746807145372,5.913,169.11,169.07,5.9143]
[1746807145668,1.9106,169.13,169.0,74.864]
[1746807145871,5.9145,169.07,169.03,5.9157]
[1746807146068,36.68,169.09,169.0,1.824]
[1746807146771,5.9142,169.08,169.04,5.9152]
[1746807147268,36.68,169.09,169.04,5.9152]
[1746807147468,25.38715089,169.06,168.92,5.5252]
[1746807147971,1.8869,169.05,168.91,1.0]
[1746807148174,36.68,169.04,168.91,1.0]
[1746807148569,5.9164,169.02,168.91,37.14]
[1746807148770,36.68,169.03,168.91,37.14]
[1746807148971,36.68,169.03,168.91,73.82]
[1746807149374,1.8869,169.05,168.91,73.82]
[1746807149574,36.68,169.06,168.93,25.38715089]
[1746807149774,42.5948,169.06,169.02,5.9159]
[1746807150376,36.68,169.06,168.98,5.7831]
[1746807151172,36.68,169.06,169.04,5.9152]
[1746807151673,1.912,169.11,168.98,5.7831]
[1746807151872,1.9812,169.12,168.98,5.7831]
[1746807152072,36.68,169.13,169.01,25.38715089]
[1746807152272,1.9303,169.15,169.02,35.98]
[1746807152778,38.6547,169.16,169.02,35.98]
[1746807153275,5.9133,169.11,169.02,35.98]
[1746807153475,38.6547,169.16,169.02,35.98]
[1746807154083,1.06219972,169.15,169.02,35.98]
[1746807154475,5.9141,169.08,169.04,5.9153]
[1746807154875,36.68,169.11,169.04,5.9153]
[1746807155178,36.68,169.11,169.02,35.98]
[1746807155578,5.9138,169.09,169.05,5.9147]
[1746807155779,36.68,169.11,169.02,35.98]
[1746807156077,36.68,169.11,169.04,5.9153]
[1746807156578,36.68,169.11,169.05,5.915]
[1746807157073,5.9139,169.09,169.02,35.98]
[1746807157277,36.68,169.11,169.02,35.98]
[1746807157578,5.9135,169.1,169.02,35.98]
[1746807157778,36.68,169.11,169.06,5.9145]
[1746807157977,36.68,169.11,169.01,36.68]
[1746807158175,5.914,169.08,169.04,5.9153]
[1746807158374,36.68,169.11,169.01,36.68]
[1746807158677,36.68,169.11,169.04,5.9153]
[1746807158880,36.68,169.11,169.02,1.0]
[1746807159174,5.9138,169.09,169.05,5.9148]
[1746807159380,36.68,169.11,169.02,1.0]
[1746807159778,36.68,169.15,169.08,5.9137]
[1746807159978,72.36,169.15,169.02,1.0]
[1746807160780,1.06226172,169.14,169.02,1.0]
[1746807160979,1.06226172,169.14,169.03,5.9157]
[1746807161180,72.36,169.15,169.03,5.9157]
[1746807161479,5.9146,169.07,169.03,5.9157]
[1746807161981,36.68,169.1,169.02,6.916]
[1746807162180,5.915,169.06,169.02,6.916]
[1746807162378,5.915,169.06,169.02,1.0]
[1746807162680,36.68,169.1,169.05,5.915]
[1746807162880,36.68,169.1,169.02,1.0]
[1746807163081,36.68,169.1,169.04,5.9153]
[1746807163379,5.9144,169.07,169.04,5.9153]
[1746807164188,72.34,169.1,169.02,1.0]
[1746807164480,3.8299,169.09,169.02,1.0]
[1746807164880,5.9158,169.03,169.02,1.0]
[1746807165586,5.9155,169.04,169.02,1.0]
[1746807166184,35.66,169.05,169.02,1.0]
[1746807166581,39.4899,169.09,169.02,1.0]
[1746807167484,83.09074824,169.05,169.02,1.0]
[1746807168083,83.09074824,169.05,169.04,5.9154]
[1746807168283,77.02054824,169.05,169.04,5.9154]
[1746807168487,138.259842,169.07,169.03,35.54]
[1746807168688,138.259842,169.07,169.06,5.9147]
[1746807169689,5.9133,169.11,169.07,5.9142]
[1746807169889,5.9133,169.11,169.03,35.54]
[1746807170089,35.66,169.13,169.07,5.914]
[1746807170387,5.913,169.11,169.03,35.54]
[1746807170590,35.66,169.13,169.03,35.54]
[1746807171087,5.9127,169.12,169.03,35.54]
[1746807171494,35.66,169.13,169.03,35.54]
[1746807171988,5.9127,169.12,169.09,5.9133]
[1746807172188,35.66,169.13,169.05,35.66]
[1746807172484,35.5,169.16,169.05,35.66]
[1746807172784,35.66,169.17,169.05,61.04715089]
[1746807172992,35.38,169.19,169.05,61.04715089]
[1746807173188,39.6307,169.21,169.05,61.04715089]
[1746807173189,5.9101,169.2,169.05,61.04715089]
[1746807173386,39.6307,169.21,169.09,25.38715089]
[1746807173692,39.6307,169.21,169.18,5.9102]
[1746807174090,35.66,169.21,169.19,5.9101]
[1746807174298,138.259842,169.22,169.15,71.1]
[1746807174487,138.259842,169.22,169.16,71.14]
[1746807174687,39.5156,169.26,169.23,5.9085]
[1746807174889,39.5156,169.26,169.24,6.3504547]
[1746807175090,35.66,169.26,169.23,5.9085]
[1746807175289,138.259842,169.28,169.24,6.35041955]
[1746807175490,138.259842,169.28,169.16,86.74000688]
[1746807175693,138.259842,169.28,169.26,5.9076]
[1746807176195,138.259842,169.28,169.25,5.9081]
[1746807176594,138.259842,169.28,169.21,35.38]
[1746807176788,138.259842,169.28,169.27,5.9074]
[1746807176993,35.3,169.33,169.22,35.66]
[1746807177193,35.3,169.33,169.23,6.33092858]
[1746807177489,35.66,169.34,169.24,6.33092858]
[1746807177692,35.66,169.34,169.25,6.33092858]
[1746807177892,5.9055,169.33,169.26,41.69092858]
[1746807178089,35.66,169.34,169.27,6.33092858]
[1746807178295,35.66,169.34,169.26,35.36]
[1746807178498,35.66,169.34,169.27,6.30833242]
[1746807178696,3.8336,169.36,169.28,6.30731427]
[1746807178994,3.8336,169.36,169.29,6.30547466]
[1746807179196,35.64,169.38,169.3,6.30512667]
[1746807179494,35.64,169.38,169.28,3.7817]
[1746807179691,35.64,169.38,169.29,6.29176531]
[1746807179885,35.64,169.38,169.3,6.29176531]
[1746807180087,37.2504,169.41,169.31,41.55164336]
[1746807180294,5.9031,169.4,169.31,35.26]
[1746807180495,37.2504,169.41,169.31,35.26]
[1746807181394,39.5029,169.42,169.32,35.62]
[1746807181689,35.62,169.46,169.32,35.62]
[1746807182496,35.62,169.46,169.33,6.25761361]
[1746807182697,35.62,169.46,169.33,31.58177563]
[1746807182998,3.884,169.49,169.33,25.32416202]
[1746807183199,5.9009,169.46,169.34,35.16]
[1746807183394,5.9009,169.46,169.35,1.9957]
[1746807183594,5.9009,169.46,169.36,35.12]
[1746807183797,5.9009,169.46,169.37,35.62]
[1746807184097,3.884,169.49,169.37,35.62]
[1746807184098,3.884,169.49,169.37,70.74]
[1746807184298,3.884,169.49,169.37,35.62]
[1746807184500,5.9008,169.46,169.37,70.74]
[1746807184895,3.884,169.49,169.37,70.74]
[1746807185304,3.884,169.49,169.39,5.9031]
[1746807185801,3.884,169.49,169.4,5.9028]
[1746807185996,3.884,169.49,169.36,35.1]
[1746807186300,5.901,169.46,169.36,35.1]
[1746807186599,3.884,169.49,169.36,35.1]
[1746807186897,3.884,169.49,169.44,5.9013]
[1746807187098,3.884,169.49,169.37,29.23416202]
[1746807187404,5.9011,169.46,169.41,5.9022]
[1746807188004,5.9012,169.45,169.41,5.9022]
[1746807188197,3.884,169.49,169.42,5.9021]
[1746807188497,3.884,169.49,169.37,3.91]
[1746807188699,5.9012,169.45,169.4,5.9025]
[1746807189004,5.9012,169.45,169.37,3.91]
[1746807189196,5.9012,169.45,169.41,5.9025]
[1746807189504,5.9008,169.46,169.37,3.91]
[1746807189802,3.884,169.49,169.37,3.91]
[1746807190704,5.9008,169.46,169.42,5.9019]
[1746807190902,3.884,169.49,169.37,3.91]
[1746807191103,3.884,169.49,169.38,70.46]
[1746807191300,5.9005,169.47,169.38,70.46]
[1746807191606,1.96,169.49,169.37,3.91]
[1746807191797,1.96,169.49,169.38,70.44]
[1746807191999,5.9003,169.48,169.44,5.9014]
[1746807192405,5.8998,169.49,169.45,5.901]
[1746807192705,5.8998,169.49,169.41,34.82]
[1746807192913,5.8993,169.51,169.41,34.82]
[1746807193301,72.3984,169.54,169.41,34.82]
[1746807194001,5.8997,169.49,169.41,34.82]
[1746807194208,37.5984,169.54,169.41,34.82]
[1746807194508,34.8,169.6,169.45,25.32416202]
[1746807194700,34.8,169.6,169.46,73.3512]
[1746807194902,34.8,169.6,169.46,75.2475]
[1746807195109,5.8968,169.58,169.54,5.8979]
[1746807195303,5.8968,169.58,169.46,75.2475]
[1746807195607,5.8963,169.59,169.55,5.8976]
[1746807195796,34.8,169.6,169.51,69.64]
[1746807196001,34.84,169.63,169.51,69.64]
[1746807198005,34.84,169.63,169.46,5.6275]
[1746807198202,34.84,169.63,169.47,69.58]
[1746807198506,34.84,169.63,169.53,5.898]
[1746807198701,60.16416202,169.63,169.53,5.898]
[1746807199006,60.16416202,169.63,169.47,69.58]
[1746807199397,5.8972,169.57,169.53,5.8981]
[1746807199805,5.8972,169.57,169.48,69.58]
[1746807200003,34.84,169.63,169.48,69.58]
[1746807200307,34.8,169.64,169.48,69.58]
[1746807200708,5.896,169.6,169.48,69.58]
[1746807200901,34.8,169.64,169.48,69.58]
[1746807201205,5.8959,169.6,169.49,87.32416202]
[1746807201704,34.8,169.64,169.49,87.32416202]
[1746807201905,510.2,169.67,169.53,25.32416202]
[1746807202109,510.2,169.67,169.46,5.6275]
[1746807202110,1.8783,169.72,169.57,25.32416202]
[1746807202303,34.76,169.74,169.57,25.32416202]
[1746807202304,34.76,169.74,169.58,76.0383]
[1746807203408,34.76,169.74,169.61,25.32416202]
[1746807203610,34.76,169.74,169.62,1.93]
[1746807203808,1.8783,169.76,169.63,72.36]
[1746807204004,1.8783,169.76,169.63,95.0329539]
[1746807205111,1.8783,169.76,169.63,157.0329539]
[1746807205699,3.929,169.77,169.63,157.0329539]
[1746807207209,3.929,169.77,169.63,134.36]
[1746807207510,36.08,169.78,169.63,134.36]
[1746807207511,36.06,169.86,169.69,22.6729539]
[1746807207706,36.06,169.85,169.7,78.0783]
[1746807208809,36.06,169.85,169.73,22.6729539]
[1746807209313,72.34,169.89,169.73,22.6729539]
[1746807209517,36.06,169.89,169.73,22.6729539]
[1746807209706,36.06,169.89,169.74,72.58]
[1746807210008,22.6729539,169.88,169.74,36.54]
[1746807210210,23.73052341,169.88,169.74,36.54]
[1746807210412,22.6729539,169.88,169.7,5.6583]
[1746807210618,22.6729539,169.84,169.7,42.2983]